Cogmind - Beta 17 @@@ ROGUE MODE // 2026.07.26 @ 13:47:23 Player: aperiodic Result: Destroyed by C5-OL9(R) with Subdweller Laser Performance ------------- Evolutions (0) 0 Regions Visited (2) 400 Robots Destroyed (41) 205 Value Destroyed (1086) 1086 Prototype IDs (15) 300 Alien Tech Used (0) 0 Bonus (0) 0 TOTAL SCORE: 1991 Bonus ------- None Cogmind --------- Core Integrity 0/250 Matter 290/300 Energy 250/250 System Corruption 0% Temperature Cool (12) Movement Treading (160) Location -10/Subcaves Parts ------- > --- POWER (1) -------- Ion Engine > --- PROPULSION (2) --- Improved Treads Spiked Treads > --- UTILITY (2) ------ Scrap Shield > --- WEAPON (2) ------- Subdweller Beam Cannon Rocket Launcher > --- INVENTORY (5) ---- Improved Treads Improved Treads Riot Gun Subdweller Beam Cannon Makeshift Sword Peak State ------------ > --- POWER ------------ Ion Engine > --- PROPULSION ------- Improved Treads Improved Treads > --- UTILITY ---------- Scrap Shield > --- WEAPON ----------- Subdweller Beam Cannon Makeshift Sword > --- INVENTORY -------- Improved Treads Improved Treads Riot Gun Subdweller Beam Cannon Rocket Launcher [Rating: 16] Favorites ----------- Power Ion Engine Engine Ion Engine Propulsion Improved Treads Treads Improved Treads Wheel Wheel Utility Scrap Shield Device Seismic Detector Storage High-capacity Storage Unit Protection Scrap Shield Weapon Subdweller Beam Cannon Energy Gun Beam Rifle Energy Cannon Subdweller Beam Cannon Ballistic Gun Light Assault Rifle Launcher Rocket Launcher Impact Weapon Hammer Slashing Weapon Makeshift Sword Build | -11 -10 -10 ------- Run | Yrd Mat Sub Slots Evolved . | . . . Power . | . . . Propulsion . | . . . Utility . | . . . Weapon . | . . . Parts Attached 30 | 8 14 8 Power 2 | 1 1 . Engine 2 | 1 1 . Core . | . . . Reactor . | . . . Propulsion 10 | 2 5 3 Treads 6 | . 3 3 Leg . | . . . Wheel 4 | 2 2 . Hover . | . . . Flight . | . . . Utility 8 | 3 4 1 Device 5 | 2 3 . Storage 2 | 1 1 . Processor . | . . . Hackware . | . . . Protection 1 | . . 1 Artifact . | . . . Weapon 10 | 2 4 4 Energy Gun 4 | 1 3 . Energy Cannon 2 | . . 2 Ballistic Gun 1 | 1 . . Ballistic Cannon . | . . . Launcher 1 | . . 1 Special Weapon . | . . . Impact Weapon 1 | . 1 . Slashing Weapon 1 | . . 1 Piercing Weapon . | . . . Special Melee Weapon . | . . . Unidentified Prototypes 1 | . 1 . Parts Lost 3 | . 2 1 Power 1 | . 1 . Propulsion . | . . . Utility 2 | . 1 1 Weapon . | . . . Highest Loss Streak 1 | . 1 1 To Critical Strikes . | . . . Average Backups 10 | 3 16 6 Power . | . 1 . Propulsion 3 | 2 4 2 Utility 1 | . 2 . Weapon 5 | . 7 3 Tool/Special . | . . . Unused Backups 15 | . 4 11 Power 2 | . . 2 Propulsion 2 | . . 2 Utility 1 | . . 1 Weapon 10 | . 4 6 Tool/Special . | . . . Average Slot Usage (%) 90 | . 98 85 Engine 13 | . 13 14 Treads 23 | . 16 27 Wheel 4 | . 11 . Device 5 | . 13 . Storage 6 | . 14 1 Protection 7 | . . 12 Energy Gun 7 | . 15 1 Energy Cannon 8 | . . 14 Impact Weapon 4 | . 12 . Slashing Weapon 6 | . . 11 Peak Build Rating 16 | 7 13 16 Average Rating 13 | 5 10 15 On Entrance 6 | . 7 13 Avg Prop Armor Cover (%) . | . . . Naked Turns . | . . . Heaviest Build 55 | 12 52 55 Greatest Support 46 | 26 40 46 Greatest Overweight (x) 2 | 1 2 1 Average Overweight (x) . | . 1 . Largest Inventory Capacity 20 | 8 20 20 Average Capacity 11 | 7 18 7 Most Carried 20 | 6 20 20 Average Carried 10 | 3 16 6 Final Capacity 20 | 8 20 5 Final Carried 20 | 6 20 5 Class Distribution -------------------- 95% | Mutant 4% | Subdweller-Mutant Dominant Class ---------------- Mutant | -10/Materials Mutant | -10/Subcaves Resources | -11 -10 -10 ----------- Run | Yrd Mat Sub Matter Collected 713 | 289 295 129 Remotely 10 | 10 . . Salvage Created 1736 | 131 985 620 Parts 79 | 12 31 36 Haulers Intercepted 2 | . 2 . Recyclers Shooed . | . . . Parts Field Recycled . | . . . Retrieved Matter . | . . . Parts Self-Destructed 10 | . . 10 Prevented . | . . . Parts Restored . | . . . Kills | -11 -10 -10 ------- Run | Yrd Mat Sub Combat Hostiles Destroyed 27 | . 16 11 Melee 6 | . 6 . Guns 6 | . 4 2 Cannons 7 | . . 7 AOE 2 | . . 2 Classes Destroyed 7 | 2 4 1 Tunneler 6 | 3 3 . Hauler 2 | . 2 . Recycler 4 | 1 3 . Watcher 2 | . 2 . Swarmer 3 | . 3 . Grunt 13 | . 13 . Subdweller 11 | . . 11 Best Kill Streak 4 | 4 4 3 Combat Bots Only 4 | . 4 3 Max Kills in Single Turn 2 | 1 1 2 Gunslinging . | . . . Exploded 2 | . . 2 Melee 1 | . 1 . Uniques/NPCs Destroyed . | . . . Combat | -11 -10 -10 -------- Run | Yrd Mat Sub Hostile Shots Fired 119 | . 63 56 Missed 37 | . 18 19 Hits 82 | . 45 37 Projectile 82 | . 45 37 Critical Strikes 2 | . 2 . Damage Taken 1479 | . 584 895 Core 260 | . 130 130 Absorbed by Shields . | . . . Core Remaining (%) 100 | 100 . . Volleys Fired 71 | 9 18 44 Largest 2 | 2 2 2 Hottest 160 | 70 112 160 Shots Fired 114 | 18 34 62 Gun 72 | 18 34 20 Cannon 38 | . . 38 Launcher 4 | . . 4 Special . | . . . Kinetic 14 | 9 5 . Thermal 96 | 9 29 58 Explosive 4 | . . 4 Electromagnetic . | . . . Robot Hit Streak 13 | 7 6 13 Robot Miss Streak 5 | 1 5 2 Penetration Max . | . . . Secondary Targets 2 | . 1 1 Max Gunslinging Chain 1 | . 1 1 Shots Hit Robots 132 | 13 67 52 Core Hits 42 | 7 18 17 Critical Kills 2 | . 1 1 Critical Parts Destroyed 9 | . 9 . Critical Strikes 16 | 1 12 3 Burn 5 | 1 2 2 Meltdown 1 | . . 1 Smash 10 | . 10 . Melee Attacks 104 | . 94 10 Impact 94 | . 94 . Slashing 10 | . . 10 Piercing . | . . . Sneak Attacks 16 | . 16 . Combat Hostiles 2 | . 2 . Follow-up Attacks . | . . . Damage Inflicted 3539 | 137 1877 1525 Guns 723 | 137 260 326 Cannons 845 | . . 845 Explosions 354 | . . 354 Melee 1617 | . 1617 . Ramming . | . . . Kinetic 58 | 36 22 . Thermal 1510 | 101 238 1171 Explosive 354 | . . 354 Electromagnetic . | . . . Impact 1617 | . 1617 . Slashing . | . . . Piercing . | . . . Highest Corruption . | . . . Average Corruption . | . . . Corruption Purged . | . . . Corruption Blocked . | . . . Overload Shots . | . . . Overflow Damage 481 | . 481 . Projectiles . | . . . Explosions . | . . . Melee 481 | . 481 . Knockbacks 6 | . 6 . Impact 6 | . 6 . Kinetic . | . . . Secondary . | . . . Self-Inflicted Damage 60 | . . 60 Shots 3 | . . 3 Rammed . | . . . Targets Rammed . | . . . Kicked . | . . . Crushed . | . . . Highest Temperature 219 | 90 219 84 Average Temperature 48 | 37 71 21 Received Heat Transfer 486 | . 339 147 Siege Activations . | . . . Martial Activations . | . . . Shielding Activations . | . . . Robots Disrupted . | . . . Combat Hostiles . | . . . Robots Corrupted 9 | . 9 . Combat Hostiles 6 | . 6 . Parts Fried 21 | . 21 . Impact Corruptions 22 | . 22 . Robots Melted 1 | . . 1 Combat Hostiles 1 | . . 1 Parts Melted 4 | . 1 3 Heat Transferred 3071 | 370 703 1998 Parts Sabotaged . | . . . Parts Stolen . | . . . Parts Stripped . | . . . Power Chain Reactions . | . . . Alert | -11 -10 -10 ------- Run | Yrd Mat Sub Maximum Alert Level 1 | . 1 . Low Security (%) 88 | 100 87 . Level 1 11 | . 12 . Level 2 . | . . . Level 3 . | . . . Level 4 . | . . . Level 5 . | . . . High Security . | . . . Max Security . | . . . Peak Influence 299 | 15 299 . Initial . | . . . Average 83 | 3 86 . Influence Increases 833 | 20 813 . Destroy 0b10 Robot/C 320 | . 320 . Destroy 0b10 Robot/NC 70 | 20 50 . Destroy Leader 78 | . 78 . Disable Machine 30 | . 30 . Destroy Structure 5 | . 5 . Lose Combat Pursuer 330 | . 330 . Influence Decreases 833 | 20 528 285 Entered New Map 137 | . . 137 Time Decay 666 | 20 508 138 Lost Part 30 | . 20 10 Squads Dispatched 4 | . 4 . Investigation 2 | . 2 . Extermination . | . . . Reinforcement 2 | . 2 . Assault . | . . . Garrison . | . . . Intercept . | . . . Searches Triggered . | . . . Construction Impeded . | . . . Haulers Reinforced . | . . . Active Scanning Responses . | . . . Cargo Convoy Interrupts . | . . . Stealth | -11 -10 -10 --------- Run | Yrd Mat Sub Distress Signals 7 | . 7 . Communications Jammed . | . . . Distress Signals . | . . . Times Spotted 59 | . 47 12 Peak Tracking Total 8 | . 8 3 Tactical Retreats 18 | . 18 . Traps | -11 -10 -10 ------- Run | Yrd Mat Sub Traps Triggered 3 | . 2 1 Indirectly . | . . . Trap Hack Attempts . | . . . Triggered . | . . . Disarmed . | . . . Reprogrammed . | . . . Reused . | . . . Traps Extracted . | . . . Installed . | . . . Triggered . | . . . Machines | -11 -10 -10 ---------- Run | Yrd Mat Sub Machines Disabled 2 | . 2 . Max in Single Turn 2 | . 2 . Machines Repaired . | . . . Machines Dismantled . | . . . Machines Sabotaged . | . . . Overloaded Fab Kills . | . . . Hacking | -11 -10 -10 --------- Run | Yrd Mat Sub Machines Accessed 2 | . . 2 Terminals . | . . . Fabricators . | . . . Repair Stations . | . . . Recycling Units . | . . . Scanalyzers . | . . . Garrison Access . | . . . Total Hacks 4 | . . 4 Successful 4 | . . 4 Failed . | . . . Catastrophic . | . . . Database Lockouts . | . . . Manual . | . . . Terminals . | . . . Fabricators . | . . . Repair Stations . | . . . Recycling Units . | . . . Scanalyzers . | . . . Garrison Access . | . . . Terminal Hacks 4 | . . 4 Record 3 | . . 3 Proto ID Catalog 1 | . . 1 Fabricator Hacks . | . . . Repair Station Hacks . | . . . Recycling Unit Hacks . | . . . Scanalyzer . | . . . Garrison Access Hacks . | . . . Unauthorized Hacks . | . . . Terminals . | . . . Fabricators . | . . . Repair Stations . | . . . Recycling Units . | . . . Scanalyzers . | . . . Garrison Access . | . . . Data Cores Recovered . | . . . Used . | . . . Hacking Detections . | . . . Full Trace Events . | . . . Feedback Events . | . . . Feedback Blocked . | . . . Robot Schematics Acquired . | . . . Robots Built . | . . . Authchips . | . . . Time . | . . . Total Robot Build Rating . | . . . Part Schematics Acquired . | . . . Parts Built . | . . . Authchips . | . . . Time . | . . . Total Part Build Rating . | . . . Part Studies Acquired . | . . . Parts Repaired . | . . . Time . | . . . Parts Recycled . | . . . Recycled Matter . | . . . Retrieved Matter . | . . . Retrieved Components . | . . . Parts Scanalyzed . | . . . Part Schematics Acquired . | . . . Parts Damaged . | . . . Bothacking | -11 -10 -10 ------------ Run | Yrd Mat Sub Used RIF Installer . | . . . Robots Hacked . | . . . Non-combat . | . . . Combat . | . . . Robot Hacks Applied . | . . . Relay Couplers Released . | . . . Fabnet Peak Effective % . | . . . Robots Rewired . | . . . Allies Hacked . | . . . Hacks Repelled . | . . . Allies | -11 -10 -10 -------- Run | Yrd Mat Sub Total Allies . | . . . Largest Group . | . . . Highest-Rated Group . | . . . Highest-Rated Ally . | . . . Total Orders . | . . . Ally Attacks . | . . . Total Damage . | . . . Kills . | . . . Allies Corrupted . | . . . Allies Melted . | . . . Intel | -11 -10 -10 ------- Run | Yrd Mat Sub Active Infowar (turns) 2773 | 17 2680 76 Seismic 2773 | 17 2680 76 Robot Analysis Total . | . . . Derelict Logs Recovered . | . . . Drone Launches . | . . . Drone Recoveries . | . . . Exploration | -11 -10 -10 ------------- Run | Yrd Mat Sub Turns Passed 7186 | 95 2820 4271 Spaces Moved 3205 | 57 1192 1956 Core 3 | 3 . . Treads 2234 | . 323 1911 Legs . | . . . Wheels 968 | 54 869 45 Hover . | . . . Flight . | . . . Fastest Speed 50 | 50 80 105 Average Speed 154 | 87 139 166 Slowest Speed 240 | 95 240 240 Overloaded Moves . | . . . Propulsion Burnouts . | . . . Robots Hopped . | . . . Potential Cave-ins . | . . . Cave-ins Triggered . | . . . Exploration Rate (%) 56 | 3 98 69 Regions Visited 2 Branch Regions 1 Pre-discovered Areas 2 | . . 2 Known Exits Taken . | . . . Unknown Exits Taken 2 | 1 1 . Scrap Searched 5 | . . 5 Spaces Dug 9 | . 9 . Terrain Destroyed 33 | . 9 24 Melee 9 | . 9 . Projectile 3 | . . 3 AOE 21 | . . 21 Terrain Rammed . | . . . Walls Destroyed . | . . . Machines Disabled . | . . . Actions | -11 -10 -10 --------- Run | Yrd Mat Sub Total 5131 | 82 2144 2905 Wait 1645 | 2 782 861 Move 3203 | 56 1191 1956 Hop . | . . . Pick Up 29 | 6 20 3 Fast Attach 14 | 8 3 3 Attach . | . . . Detach 2 | . . 2 Swap 34 | . 27 7 Drop 18 | 1 9 8 Fire 71 | 9 18 44 Melee 104 | . 94 10 Ram . | . . . Kick . | . . . Crush . | . . . Escape Stasis . | . . . Rewire . | . . . Trap . | . . . Miscellaneous 11 | . . 11 Route ------- -11/Scrapyard -10/Materials (discovered 6 exits: [*Mat x3] / [*Min x2] / *Sub) -10/Subcaves (discovered 2 exits: [*Mat x2]) History --------- Turn | Location | Event 16 | -11/Scrapyard | Discovered new exit (range 15) 96 | -11/Scrapyard | Entered Materials 284 | -10/Materials | Discovered new exit (range 9) 303 | -10/Materials | Build established: Mutant 512 | -10/Materials | Discovered new exit (range 8) 827 | -10/Materials | Discovered new exit (range 6) 928 | -10/Materials | Discovered new exit (range 11) 1891 | -10/Materials | Core integrity fell below 50% 2353 | -10/Materials | Discovered new exit (range 16) 2909 | -10/Materials | Discovered new exit (range 8) 2916 | -10/Materials | Entered Subcaves 2955 | -10/Subcaves | Ambushed by Subdwellers from Twisted Machinery 3115 | -10/Subcaves | Learned location of Zion (-6) 3115 | -10/Subcaves | Met a Zionite searching for "candidates" 3162 | -10/Subcaves | Discovered new exit (range 11) 3168 | -10/Subcaves | Shifting Twisted Machinery released Sub. Beam Cannon 3180 | -10/Subcaves | Shifting Twisted Machinery released Mak. Sword 3184 | -10/Subcaves | Shifting Twisted Machinery released Battle Cannon 4481 | -10/Subcaves | A swath of the cavern ceiling suddenly collapsed 6019 | -10/Subcaves | Core integrity fell below 20% 6444 | -10/Subcaves | Visited Clippyterm 6449 | -10/Subcaves | Learned location of Section 7 (-3) 6449 | -10/Subcaves | Learned 40 Factory zone layouts 6569 | -10/Subcaves | Visited 4L-MR0's lab 6818 | -10/Subcaves | Discovered new exit (range 10) 7100 | -10/Subcaves | Build established: Subdweller-Mutant 7187 | -10/Subcaves | Destroyed by C5-OL9(R) with Subdweller Laser Last Messages --------------- VL-GR5's Exoskeleton "Deathgrip" Powered Cannon 06583_ 4L-MR0 mumbles: "I'm surprised some of them are even willing to come in here given their fear of my usual visitors." 06589_ 4L-MR0 mumbles: "Who knows where that last prototype ended up, probably tossed aside somewhere as if it were useless junk..." 06615_ Searching scrap... 06615_ Found Sub. Machine Gun. 06615_ Found 65 Matter. 06801_ E6-G31(R) destroyed. 06818_ EXIT=FOUND 06821_ B8-AOE(R) suffers critical hit (Meltdown). 06829_ Scrap Shield Fragment affixed to Scrap Shield (+5). 06832_ Acquired 10 matter. 06839_ 19-TNJ(R) destroyed. 07121_ C6-A7S(R) destroyed. Map ----- +----------------------------------------------------+ | ??????## " ##"""""##?##??## #????????????? | | ??????# ""###"""""### #?### #####????????????? | | ?????### "##?##""""" ### #????????????????? | | ????## ""#?###""" # ##????????????????? | | ???## ##?# "" " # # #???????##????????? | | ??## "#??# ### ## ####?????? ###??????? | | ??# ""#?### #### ### #????????? #??????? | | ??## "" ### ######### ##??????? #???????? | | ???# " ## #?# ## ##??#### #????????? | | ???# ##?# ### #?????????? | | ??## #??# ## #??????????? | | ??# #??#### ## #????????????? | | ??# ## ####### #????????????? | | ??# ## ### #????????????? | | ??# ##### ##????????????? | | ??# ##%[## "##?????????????? | | ??# ### ## "##?????????????? | | ??# ##?# ###### ""#?????????????? | | ??# ###?# ###???## ""#?????????????? | | ??# ##???##### #?????#% #?????????????? | | ??# #????????## ##?????# #?????????????? | | ??## #????? ##?########## ####?????????????? | | ???##?????? ### ##????????????????? | | ?????????? ##?????????????????? | | ?????????? ##??????????????????? | | ???????????????# @ ##???????????????????? | | ???????????????###### # #??????????????????? | | ???????????????????# ""?????????????????? | | ???????????????% """???????????????? | | ?????????????#!! ##### " ???????????????? | | ?????????????# % ?????## ??????????????? | | ????????????#; ##??????? ????????????? | | ????????????# ?????????? "???????????? | | ????????????? R # ???????????# ??????????? | | ????????????? ## ????????????? #??????????? | | ??????????????####?# ?????????????? ??????????? | | ???????????????????##????????????????$ ??????????? | | ?????????????????????????????????????????????????? | | ?????????????????????????????????????????????????? | | ?????????????????????????????????????????????????? | | ?????????????????????????????????????????????????? | | ?????????????????????????????????????????????????? | | ?????????????????????????????????????????????????? | | ?????????????????????????????????????????????????? | | ?????????????????????????????????????????????????? | | ?????????????????????????????????????????????????? | | ?????????????????????????????????????????????????? | | ?????????????????????????????????????????????????? | | ?????????????????????????????????????????????????? | | ?????????????????????????????????????????????????? | +----------------------------------------------------+ Best States ------------- Heat Dissipation 25 Energy Generation 10 Energy Capacity 250 Matter Stores 300 Matter Capacity 300 Sight Range 16 Terrain Scan Density 10 Armor Coverage 800 Evasion (%) 44 Recoil Reduction 2 Item Schematics ----------------- None Robot Schematics ------------------ None Fabricated ------------ Nothing Repaired ---------- Nothing Studied --------- None Alien Tech Used ----------------- None Achievements -------------- None Challenges ------------ None Game ------ Seed PoweredBoreSword Manual? 0 Play Time 00:37:05 Cumulative 772.0 hours Start 2026.07.26 @ 13:12:14 End 2026.07.26 @ 13:47:23 Sessions 1 Manual Loads 0 Difficulty Rogue Special Mode None Game No. 270 Rogue 266 Adventurer 4 Explorer 0 Win Type - Total 21 Types 9/2/6/0/0/0/2/2/0/0 Lore% 88 Gallery% 76 Achievement% 60 Wizard Run 0 Options --------- Layout 1 ASCII 0 Keyboard 0 Movement Arrows Keybinds 0 Fullscreen 1 Font 40/SmallcapsGlow Map View 50x40 Zoom Use 0% Tactical HUD 1 Map Filters NONE Filters NONE Steam 1 RUN: 4b3c7c42-0d0b-46ec-9ae5-f1adf1b72307